Cogmind - Beta 11.1 @@@ ROGUE MODE // 2022.06.28 @ 00:51:08 Player: Jezoensis Result: Destroyed by as-45857 with Assembled F-torch Performance ------------- Evolutions (0) 0 Regions Visited (2) 400 Robots Destroyed (11) 55 Value Destroyed (69) 69 Prototype IDs (2) 40 Alien Tech Used (0) 0 Bonus (-105) -105 TOTAL SCORE: 459 Bonus ------- Follower Combat Kills 7 Friendly Fire -112 Cogmind --------- Core Integrity 0/250 Matter 299/300 Energy 248/250 System Corruption 5% Temperature Cool (45) Movement Rolling (90) Location -10/Mines Parts ------- > --- POWER (1) -------- Ion Engine > --- PROPULSION (2) --- Wheel Compact Wheel > --- UTILITY (2) ------ Medium Storage Unit Structural Scanner > --- WEAPON (2) ------- Medium Laser Light Assault Rifle > --- INVENTORY (10) --- Light Ion Engine Light Ion Engine Light Treads Wheel Compact Wheel Heat Sink High-capacity Storage Unit High-capacity Matter Pod (48) Medium Laser Mining Laser Peak State ------------ > --- POWER ------------ Ion Engine > --- PROPULSION ------- Wheel Wheel > --- UTILITY ---------- Medium Storage Unit Improved Terrain Scanner > --- WEAPON ----------- Medium Laser Assault Rifle > --- INVENTORY -------- Ion Engine Light Treads Light Treads Compact Wheel Small Storage Unit Improved Terrain Scanner Assault Rifle Mining Laser [Rating: 10] Favorites ----------- Power Ion Engine Engine Ion Engine Propulsion Wheel Treads Light Treads Wheel Wheel Utility Medium Storage Unit Device Improved Terrain Scanner Storage Medium Storage Unit Weapon Assault Rifle Energy Gun Medium Laser Ballistic Gun Assault Rifle Build | -11 -10 -10 ------- Run | Scr Mat Min Slots Evolved . | . . . Power . | . . . Propulsion . | . . . Utility . | . . . Weapon . | . . . Parts Attached 22 | 8 1 13 Power 2 | 1 . 1 Engine 2 | 1 . 1 Core . | . . . Reactor . | . . . Propulsion 10 | 3 . 7 Treads 4 | . . 4 Leg . | . . . Wheel 6 | 3 . 3 Hover . | . . . Flight . | . . . Utility 5 | 2 1 2 Device 3 | 1 . 2 Storage 2 | 1 1 . Processor . | . . . Hackware . | . . . Protection . | . . . Artifact . | . . . Weapon 5 | 2 . 3 Energy Gun 2 | 1 . 1 Energy Cannon . | . . . Ballistic Gun 3 | 1 . 2 Ballistic Cannon . | . . . Launcher . | . . . Special Weapon . | . . . Impact Weapon . | . . . Slashing Weapon . | . . . Piercing Weapon . | . . . Special Melee Weapon . | . . . Unidentified Prototypes . | . . . Parts Lost 10 | . . 10 Power 1 | . . 1 Propulsion 4 | . . 4 Utility 2 | . . 2 Weapon 3 | . . 3 Highest Loss Streak 7 | . . 7 To Critical Strikes . | . . . Average Slot Usage (%) 92 | . 100 87 Engine 13 | . 14 12 Treads 1 | . . 2 Wheel 26 | . 28 25 Device 12 | . 14 11 Storage 14 | . 14 14 Energy Gun 8 | . 14 5 Ballistic Gun 14 | . 14 14 Naked Turns . | . . . Heaviest Build 20 | 15 20 20 Greatest Support 40 | 26 20 40 Greatest Overweight (x) 1 | . . 1 Average Overweight (x) . | . . . Largest Inventory Capacity 10 | 8 10 10 Average Capacity 9 | 7 9 10 Most Carried 10 | 7 10 10 Average Carried 7 | 4 9 7 Final Capacity 10 | 8 10 10 Final Carried 10 | 7 10 10 Class Distribution -------------------- 100% | Mutant Dominant Class ---------------- Mutant | -10/Materials Mutant | -10/Mines Resources | -11 -10 -10 ----------- Run | Scr Mat Min Matter Collected 529 | 266 73 190 Remotely . | . . . Salvage Created 287 | 44 125 118 Parts 19 | 7 8 4 Haulers Intercepted 1 | . 1 . Recyclers Shooed . | . . . Parts Field Recycled . | . . . Retrieved Matter . | . . . Parts Self-Destructed . | . . . Prevented . | . . . Kills | -11 -10 -10 ------- Run | Scr Mat Min Combat Hostiles Destroyed 8 | . 3 5 Guns 8 | . 3 5 Classes Destroyed 7 | 1 3 3 Worker 1 | . . 1 Builder 1 | . 1 . Tunneler 3 | 3 . . Hauler 1 | . 1 . Swarmer 4 | . 3 1 Grunt 1 | . . 1 Assembled 4 | . . 4 Best Kill Streak 3 | 3 3 2 Combat Bots Only 2 | . 2 2 Max Kills in Single Turn 1 | 1 1 1 Gunslinging . | . . . Exploded . | . . . Melee . | . . . Uniques/NPCs Destroyed . | . . . Combat | -11 -10 -10 -------- Run | Scr Mat Min Damage Taken 1088 | . 86 1002 Core 251 | . 23 228 Absorbed by Shields . | . . . Core Remaining (%) 100 | 100 . . Volleys Fired 40 | 10 12 18 Largest 2 | 2 2 2 Hottest 70 | 70 70 70 Shots Fired 72 | 20 24 28 Gun 72 | 20 24 28 Cannon . | . . . Launcher . | . . . Special . | . . . Kinetic 40 | 10 12 18 Thermal 32 | 10 12 10 Explosive . | . . . Electromagnetic . | . . . Robot Hit Streak 4 | 4 4 4 Robot Miss Streak 7 | 7 3 2 Penetration Max . | . . . Secondary Targets . | . . . Shots Hit Robots 34 | 7 12 15 Core Hits 16 | 3 5 8 Critical Kills . | . . . Critical Parts Destroyed . | . . . Critical Strikes 2 | 1 1 . Burn 2 | 1 1 . Melee Attacks . | . . . Impact . | . . . Slashing . | . . . Piercing . | . . . Sneak Attacks . | . . . Combat Hostiles . | . . . Follow-up Attacks . | . . . Damage Inflicted 467 | 113 155 199 Guns 467 | 113 155 199 Cannons . | . . . Explosions . | . . . Melee . | . . . Ramming . | . . . Kinetic 213 | 49 53 111 Thermal 254 | 64 102 88 Explosive . | . . . Electromagnetic . | . . . Impact . | . . . Slashing . | . . . Piercing . | . . . Highest Corruption 5 | . . 5 Average Corruption 4 | . . 4 Corruption Purged . | . . . Corruption Blocked . | . . . Effects 2 | . . 2 Data Loss (major) 1 | . . 1 Weapon Failures 1 | . . 1 Overload Shots . | . . . Overflow Damage . | . . . Projectiles . | . . . Explosions . | . . . Melee . | . . . Knockbacks . | . . . Impact . | . . . Kinetic . | . . . Secondary . | . . . Self-Inflicted Damage . | . . . Shots . | . . . Rammed . | . . . Targets Rammed . | . . . Kicked . | . . . Crushed . | . . . Highest Temperature 66 | 54 45 66 Average Temperature 20 | 24 18 17 Received Heat Transfer 26 | . . 26 Siege Activations . | . . . Robots Corrupted . | . . . Combat Hostiles . | . . . Parts Fried . | . . . Impact Corruptions . | . . . Robots Melted . | . . . Combat Hostiles . | . . . Parts Melted 1 | 1 . . Heat Transferred 888 | 259 370 259 Parts Sabotaged . | . . . Parts Stolen . | . . . Parts Stripped . | . . . Power Chain Reactions . | . . . Missiles Intercepted . | . . . Alert | -11 -10 -10 ------- Run | Scr Mat Min Peak Influence 104 | 15 100 104 Initial 37 | . 9 37 Average 43 | 5 34 60 Maximum Alert Level . | . . . Low Security (%) 100 | 100 100 100 Level 1 . | . . . Level 2 . | . . . Level 3 . | . . . Level 4 . | . . . Level 5 . | . . . High Security . | . . . Max Security . | . . . Squads Dispatched 1 | . 1 . Investigation 1 | . 1 . Extermination . | . . . Reinforcement . | . . . Assault . | . . . Garrison . | . . . Intercept . | . . . Searches Triggered . | . . . Construction Impeded . | . . . Haulers Reinforced . | . . . Active Scanning Responses . | . . . Cargo Convoy Interrupts . | . . . Stealth | -11 -10 -10 --------- Run | Scr Mat Min Distress Signals . | . . . Communications Jammed . | . . . Distress Signals . | . . . Times Spotted 16 | . 5 11 Peak Tracking Total 3 | . 3 3 Tactical Retreats 2 | . 1 1 Traps | -11 -10 -10 ------- Run | Scr Mat Min Traps Triggered . | . . . Indirectly . | . . . Trap Hack Attempts . | . . . Triggered . | . . . Disarmed . | . . . Reprogrammed . | . . . Reused . | . . . Traps Extracted . | . . . Installed . | . . . Triggered . | . . . Machines | -11 -10 -10 ---------- Run | Scr Mat Min Machines Disabled . | . . . Max in Single Turn . | . . . Machines Sabotaged . | . . . Garrisons Compromised . | . . . Overloaded Fab Kills . | . . . Hacking | -11 -10 -10 --------- Run | Scr Mat Min Machines Accessed 6 | . 5 1 Terminals 5 | . 4 1 Fabricators . | . . . Repair Stations . | . . . Recycling Units 1 | . 1 . Scanalyzers . | . . . Garrison Access . | . . . Total Hacks 28 | . 25 3 Successful 18 | . 17 1 Failed 9 | . 7 2 Catastrophic . | . . . Database Lockouts 1 | . 1 . Manual 22 | . 19 3 Terminals 27 | . 24 3 Fabricators . | . . . Repair Stations . | . . . Recycling Units 1 | . 1 . Scanalyzers . | . . . Garrison Access . | . . . Terminal Hacks 10 | . 9 1 Robot Analysis 3 | . 2 1 Prototype ID Bank 1 | . 1 . Branch Access Points 1 | . 1 . Emergency Access Points 1 | . 1 . Terminal Index 1 | . 1 . Unreport Threat 1 | . 1 . Locate Traps 1 | . 1 . Zone Layout 1 | . 1 . Fabricator Hacks . | . . . Repair Station Hacks . | . . . Recycling Unit Hacks . | . . . Scanalyzer . | . . . Garrison Access Hacks . | . . . Unauthorized Hacks 8 | . 8 . Terminals 7 | . 7 . Track 3 | . 3 . Assimilate 1 | . 1 . Botnet 2 | . 2 . Operators 1 | . 1 . Fabricators . | . . . Repair Stations . | . . . Recycling Units 1 | . 1 . Tunnel 1 | . 1 . Scanalyzers . | . . . Garrison Access . | . . . Data Cores Recovered . | . . . Used . | . . . Hacking Detections 4 | . 3 1 Full Trace Events . | . . . Feedback Events . | . . . Feedback Blocked . | . . . Robot Schematics Acquired . | . . . Robots Built . | . . . Authchips . | . . . Time . | . . . Total Robot Build Rating . | . . . Part Schematics Acquired . | . . . Parts Built . | . . . Authchips . | . . . Time . | . . . Total Part Build Rating . | . . . Parts Repaired . | . . . Time . | . . . Parts Recycled . | . . . Recycled Matter . | . . . Retrieved Matter . | . . . Retrieved Components . | . . . Parts Scanalyzed . | . . . Part Schematics Acquired . | . . . Parts Damaged . | . . . Bothacking | -11 -10 -10 ------------ Run | Scr Mat Min Used RIF Installer . | . . . Robots Hacked . | . . . Non-combat . | . . . Combat . | . . . Robot Hacks Applied . | . . . Relay Couplers Released . | . . . Fabnet Peak Effective % . | . . . Robots Rewired . | . . . Allies Hacked . | . . . Hacks Repelled . | . . . Allies | -11 -10 -10 -------- Run | Scr Mat Min Total Allies 4 | . 1 3 Largest Group 3 | . 1 3 Highest-Rated Group 40 | . 10 40 Highest-Rated Ally 16 | . 10 16 Total Orders . | . . . Ally Attacks 29 | . . 29 Total Damage 304 | . . 304 Kills 5 | . . 5 Allies Corrupted . | . . . Allies Melted . | . . . Intel | -11 -10 -10 ------- Run | Scr Mat Min Robot Analysis Total 3 | . 2 1 Derelict Logs Recovered 3 | . . 3 Drone Launches . | . . . Drone Recoveries . | . . . Exploration | -11 -10 -10 ------------- Run | Scr Mat Min Turns Passed 599 | 92 205 302 Spaces Moved 521 | 57 204 260 Core 16 | 16 . . Treads 3 | . . 3 Legs . | . . . Wheels 502 | 41 204 257 Hover . | . . . Flight . | . . . Fastest Speed 50 | 50 80 80 Average Speed 84 | 75 80 89 Slowest Speed 160 | 90 80 160 Overloaded Moves . | . . . Propulsion Burnouts . | . . . Robots Hopped . | . . . Cave-ins Triggered . | . . . Exploration Rate (%) 37 | 3 40 69 Regions Visited 2 Branch Regions 1 Pre-discovered Areas 1 | . 1 . Known Exits Taken 1 | . 1 . Unknown Exits Taken 1 | 1 . . Scrap Searched 2 | . . 2 Spaces Dug . | . . . Terrain Destroyed . | . . . Melee . | . . . Projectile . | . . . AOE . | . . . Terrain Rammed . | . . . Walls Destroyed . | . . . Machines Disabled . | . . . Actions | -11 -10 -10 --------- Run | Scr Mat Min Total 604 | 82 221 301 Wait 2 | . 1 1 Move 519 | 56 203 260 Hop . | . . . Pick Up 20 | 8 3 9 Fast Attach 6 | 5 . 1 Attach 11 | 2 . 9 Detach . | . . . Swap 5 | 1 1 3 Drop 1 | . 1 . Fire 40 | 10 12 18 Melee . | . . . Ram . | . . . Kick . | . . . Crush . | . . . Escape Stasis . | . . . Rewire . | . . . Trap . | . . . Miscellaneous . | . . . Route ------- -11/Scrapyard -10/Materials (discovered 2 exits: *Min x2) -10/Mines (discovered 1 exit: [*Mat]) History --------- Turn | Location | Event 7 | -11/Scrapyard | Discovered new exit (range 16) 93 | -11/Scrapyard | Entered Materials 106 | -10/Materials | Discovered new exit (range 15) 188 | -10/Materials | Central database locked down 235 | -10/Materials | Identified exit to Mines 298 | -10/Materials | Entered Mines 298 | -10/Mines | Accompanied by 1 ally 304 | -10/Mines | Assembled infested the area 311 | -10/Mines | Build established: Mutant 355 | -10/Mines | Core integrity fell below 50% 363 | -10/Mines | Core integrity fell below 20% 389 | -10/Mines | Lost 7 parts (1p3n1u2w) 402 | -10/Mines | Assisted by bots powering up and referring to "LRC-V3" 449 | -10/Mines | Learned Materials terminal intel 468 | -10/Mines | Discovered new exit (range 8) 561 | -10/Mines | Lost 3 parts (1n1u1w) 577 | -10/Mines | Learned location of 1 exit from Materials 600 | -10/Mines | Destroyed by as-45857 with Assembled F-torch Last Messages --------------- 00542_ Acquired 16 matter. 00544_ Acquired Lgt. Ion Engine. 00546_ System corrupted: Substantial component data lost. 00550_ Searching scrap... 00550_ Found Sml. Laser. 00550_ Found Core Shielding. 00550_ Found Hcp. Matter Pod. 00550_ Found Heat Sink. 00550_ Found 44 Matter. 00551_ Acquired 44 matter. 00553_ Acquired Heat Sink. 00553_ as-39161 suffers critical hit (Burn). 00554_ as-39161 destroyed. 00559_ Acquired 17 matter. 00569_ as-22499 destroyed. 00576_ Acquired 15 matter. 00577_ Acquired derelict log, extracted data. Data stored: Materials exits (x1). 00597_ System corrupted: Lgt. Assault Rifle jammed. 00599_ Mercenary 1a destroyed. Map ----- +----------------------------------------------------+ | ????#!% #??# ######## #?????????#??????????#?????? | | ??#?# ###??# #????????????? ?#??????????? | | ???## #################???????????? ###??####??? | | ????#=%= #?????????????????????? ## ### | | ????#!##### #?#?#?????????????????? # | | ????# #??????????????????????????? | | ????# #???#??????????????????????? | | ???## ##????????????????????????????# | | ???## ##??????#??????????????????????# | | ???## ##???#?????????????????????????# # | | ???## ##?????????????????????????????## ## | | ???## ###?????????????????????????????### ##? | | #####%##??#?????????????????????????????# #??? | | #####=####??????????????????????????????# ???? | | # ##%######???????????????????????????# ????? | | % ######?????????????????????????# ?????? | | % ####????????######????????? ??????? | | ####???????#######??????? ???????? | | #####?????## ####??????## ????????? | | ## ## #####????## ###???????## ????????? | | ####### ###????## ##??????####?????????? | | ########## ######### ##??????####?????????? | | ##########[ ######### ###?????? ### ???????? | | ## ! ! ## #### ####### " ## ???????? | | ## ######### ## ###### ??????? | | ######### @ ??????? | | ??????##### % a ??????? | | ??????#### ##g###### ??????? | | ?????### ### #######?????????????? | | ?????## #### ####### ??????? ##??? | | ?????##### |% #### ####### ###?? | | ?????###### * #### ##?? | | ????????#### ### ######### ## ##?? | | ????????? ###### ############## ###????? ##?? | | ?????????? ##### #######?????## ##?????????? #?? | | ?????????????? ##??????????## ##??????????????? | | ???????????? ##??????????## ??????????????? | | ????????????########??????????#####??????????????? | | ????????????########??????????#####??????????????? | | ?????????????????????????????????????????????????? | | ?????????????????????????????????????????????????? | | ?????????????????????????????????????????????????? | | ?????????????????????????????????????????????????? | | ?????????????????????????????????????????????????? | | ?????????????????????????????????????????????????? | | | | | | | | | | | +----------------------------------------------------+ Best States ------------- Heat Dissipation 25 Energy Generation 10 Energy Capacity 250 Matter Stores 300 Matter Capacity 300 Sight Range 16 Terrain Scan Range 16 Terrain Scan Density 10 Evasion (%) 50 Recoil Reduction 2 Item Schematics ----------------- None Robot Schematics ------------------ None Fabricated ------------ Nothing Alien Tech Used ----------------- None Achievements -------------- None Challenges ------------ None Game ------ Seed StorageTrapMace Manual? 0 Play Time 00:14:59 Cumulative 707.6 hours Start 2022.06.28 @ 00:41:09 End 2022.06.28 @ 00:51:08 Sessions 1 Manual Loads 0 Difficulty Rogue Special Mode None Game No. 372 Rogue 245 Adventurer 125 Explorer 2 Win Type - Total 83 Types 72/4/4/1/1/0/0/0/1 Lore% 81 Gallery% 88 Achievement% 76 Wizard Run 0 Options --------- ASCII 0 Keyboard 1 Movement Numpad Keybinds 0 Fullscreen 1 Font 36/TerminusFine Map View 76x50 Tactical HUD 1 Map Filters NONE Filters NONE Steam 1 RUN: eaa37f78-0cfa-4e94-8a90-4c9130252b03